[Event "Late-Titled-Tuesday-Blitz-April-02-2024"]
[Site "Chess.com"]
[Date "2024.04.02"]
[Round "3"]
[White "MarcoRiehle"]
[Black "jaskol95"]
[Result "1-0"]
[WhiteElo "2793"]
[BlackElo "2525"]
[TimeControl "180+1"]
[EndTime "14:26:13 PDT"]
[Termination "MarcoRiehle won by checkmate"]

1. e4 {[%clk 0:03:00.9]} 1... c5 {[%clk 0:03:00.2]} 2. a3 {[%clk 0:02:57]} 2...
e5 {[%clk 0:02:55.7]} 3. Nc3 {[%clk 0:02:55.2]} 3... Nc6 {[%clk 0:02:55.3]} 4.
Bc4 {[%clk 0:02:53.6]} 4... Nf6 {[%clk 0:02:53.3]} 5. d3 {[%clk 0:02:53.2]} 5...
Be7 {[%clk 0:02:53.4]} 6. f4 {[%clk 0:02:51.5]} 6... d6 {[%clk 0:02:53]} 7. Nf3
{[%clk 0:02:48.6]} 7... a6 {[%clk 0:02:39.8]} 8. O-O {[%clk 0:02:47]} 8... b5
{[%clk 0:02:38.5]} 9. Ba2 {[%clk 0:02:43.5]} 9... Bb7 {[%clk 0:02:37.7]} 10. Qe1
{[%clk 0:02:38.6]} 10... Nd4 {[%clk 0:02:23.2]} 11. Nxd4 {[%clk 0:02:36.5]}
11... cxd4 {[%clk 0:02:22.9]} 12. Ne2 {[%clk 0:02:34.4]} 12... Rc8 {[%clk
0:02:18.1]} 13. Bb3 {[%clk 0:02:33]} 13... Qb6 {[%clk 0:01:58.4]} 14. Ng3 {[%clk
0:02:26.5]} 14... g6 {[%clk 0:01:39.2]} 15. fxe5 {[%clk 0:02:21.6]} 15... dxe5
{[%clk 0:01:40.1]} 16. Bh6 {[%clk 0:02:19.9]} 16... Bf8 {[%clk 0:01:26.9]} 17.
Bg5 {[%clk 0:02:14.3]} 17... Bg7 {[%clk 0:01:26.1]} 18. Qf2 {[%clk 0:02:01.6]}
18... Rc6 {[%clk 0:01:26.1]} 19. Qe2 {[%clk 0:01:52.6]} 19... O-O {[%clk
0:01:24]} 20. Rf2 {[%clk 0:01:51.3]} 20... h6 {[%clk 0:01:03.5]} 21. Bd2 {[%clk
0:01:46.8]} 21... Rc7 {[%clk 0:00:52.3]} 22. Raf1 {[%clk 0:01:45.1]} 22... Ne8
{[%clk 0:00:45.7]} 23. Qe1 {[%clk 0:01:36.6]} 23... Rd7 {[%clk 0:00:33.4]} 24.
Ba5 {[%clk 0:01:33.5]} 24... Qc6 {[%clk 0:00:31.6]} 25. Bb4 {[%clk 0:01:33.4]}
25... Nd6 {[%clk 0:00:31.4]} 26. Bd5 {[%clk 0:01:33.3]} 26... Qc8 {[%clk
0:00:31.6]} 27. Bxd6 {[%clk 0:01:25.9]} 27... Rxd6 {[%clk 0:00:21.9]} 28. Bxf7+
{[%clk 0:01:24.7]} 28... Kh7 {[%clk 0:00:21.9]} 29. h4 {[%clk 0:01:24.7]} 29...
Qc7 {[%clk 0:00:14.8]} 30. h5 {[%clk 0:01:22.3]} 30... g5 {[%clk 0:00:11.4]} 31.
Bg6+ {[%clk 0:01:21.7]} 31... Kg8 {[%clk 0:00:11.7]} 32. Rxf8+ {[%clk
0:01:21.2]} 32... Bxf8 {[%clk 0:00:11.9]} 33. Qf2 {[%clk 0:01:19.2]} 33... Qg7
{[%clk 0:00:12.2]} 34. Nf5 {[%clk 0:01:18.8]} 34... Qf6 {[%clk 0:00:11.9]} 35.
Nxd6 {[%clk 0:01:18.2]} 35... Qxd6 {[%clk 0:00:12.8]} 36. Qf7+ {[%clk
0:01:17.6]} 36... Kh8 {[%clk 0:00:13.7]} 37. Qh7# {[%clk 0:01:18]} 1-0

[Event "Late-Titled-Tuesday-Blitz-April-02-2024"]
[Site "Chess.com"]
[Date "2024.04.02"]
[Round "3"]
[White "BillCoe"]
[Black "WCM-Mexicana"]
[Result "0-1"]
[WhiteElo "2114"]
[BlackElo "2361"]
[TimeControl "180+1"]
[EndTime "14:26:15 PDT"]
[Termination "WCM-Mexicana won by resignation"]

1. e4 {[%clk 0:03:00.9]} 1... c6 {[%clk 0:02:57.7]} 2. d4 {[%clk 0:03:00.3]}
2... d5 {[%clk 0:02:58.6]} 3. exd5 {[%clk 0:03:00.5]} 3... cxd5 {[%clk
0:02:58.5]} 4. Bd3 {[%clk 0:03:01.1]} 4... Nc6 {[%clk 0:02:58.2]} 5. c3 {[%clk
0:03:01.5]} 5... g6 {[%clk 0:02:56.2]} 6. Be3 {[%clk 0:03:00.1]} 6... Bg7 {[%clk
0:02:56.1]} 7. h3 {[%clk 0:02:59.3]} 7... h5 {[%clk 0:02:55.5]} 8. Nf3 {[%clk
0:02:59.3]} 8... Nh6 {[%clk 0:02:55.5]} 9. Nbd2 {[%clk 0:02:54.2]} 9... Nf5
{[%clk 0:02:55]} 10. Nf1 {[%clk 0:02:54.1]} 10... a6 {[%clk 0:02:46.9]} 11. Qd2
{[%clk 0:02:53]} 11... b5 {[%clk 0:02:47]} 12. Bf4 {[%clk 0:02:49.8]} 12... b4
{[%clk 0:02:41.9]} 13. Ne3 {[%clk 0:02:49.2]} 13... bxc3 {[%clk 0:02:31.1]} 14.
bxc3 {[%clk 0:02:50.1]} 14... Nxe3 {[%clk 0:02:30.8]} 15. Qxe3 {[%clk
0:02:46.8]} 15... Qa5 {[%clk 0:02:30.2]} 16. O-O {[%clk 0:02:43.2]} 16... Qxc3
{[%clk 0:02:22.3]} 17. Rfc1 {[%clk 0:02:40.5]} 17... Bxd4 {[%clk 0:01:34.9]} 18.
Rxc3 {[%clk 0:02:39.2]} 18... Bxe3 {[%clk 0:01:35.2]} 19. Bxe3 {[%clk
0:02:36.1]} 19... Bd7 {[%clk 0:01:35.6]} 20. Nd4 {[%clk 0:02:27.9]} 20... Ne5
{[%clk 0:01:25.5]} 21. Be2 {[%clk 0:02:23.8]} 21... O-O {[%clk 0:01:22.2]} 22.
Rac1 {[%clk 0:02:23.2]} 22... a5 {[%clk 0:01:17.1]} 23. Bf4 {[%clk 0:02:23.1]}
23... f6 {[%clk 0:01:10.5]} 24. Bxe5 {[%clk 0:02:23.3]} 24... fxe5 {[%clk
0:01:10.6]} 25. Nc6 {[%clk 0:02:23.6]} 25... d4 {[%clk 0:01:09.4]} 26. Rc5
{[%clk 0:02:21.4]} 26... Bxc6 {[%clk 0:01:06]} 27. Rxc6 {[%clk 0:02:21]} 27...
Rf6 {[%clk 0:01:06.6]} 28. Bc4+ {[%clk 0:02:18.2]} 28... Kg7 {[%clk 0:01:05.9]}
29. Rc7 {[%clk 0:02:18.4]} 29... Kh6 {[%clk 0:01:00.7]} 30. Rxe7 {[%clk
0:02:16.5]} 30... Rc8 {[%clk 0:01:00.7]} 31. Rxe5 {[%clk 0:02:10.7]} 31... Rfc6
{[%clk 0:01:00.5]} 32. Rxa5 {[%clk 0:02:08.5]} 32... Rxc4 {[%clk 0:01:00.8]} 33.
Rxc4 {[%clk 0:02:08.3]} 33... Rxc4 {[%clk 0:01:01.7]} 34. Rd5 {[%clk 0:02:04.1]}
34... Ra4 {[%clk 0:01:01.6]} 35. g4 {[%clk 0:02:02.3]} 35... hxg4 {[%clk
0:00:57.7]} 36. hxg4 {[%clk 0:02:01.8]} 36... Kg7 {[%clk 0:00:51]} 37. g5 {[%clk
0:01:58.9]} 37... Kf7 {[%clk 0:00:51.5]} 38. Kg2 {[%clk 0:01:58.6]} 38... Ke6
{[%clk 0:00:52]} 39. Rd8 {[%clk 0:01:46.2]} 39... Kf5 {[%clk 0:00:50.9]} 40.
Rd5+ {[%clk 0:01:42.5]} 40... Kf4 {[%clk 0:00:48.9]} 41. a3 {[%clk 0:01:38.1]}
41... Ke4 {[%clk 0:00:43.6]} 42. Rd6 {[%clk 0:01:38.2]} 42... d3 {[%clk
0:00:39.5]} 43. Rxg6 {[%clk 0:01:33.4]} 43... d2 {[%clk 0:00:38.7]} 44. Re6+
{[%clk 0:01:31.8]} 44... Kd5 {[%clk 0:00:33.5]} 45. Re8 {[%clk 0:01:30]} 45...
Rd4 {[%clk 0:00:34]} 46. g6 {[%clk 0:01:27.7]} 46... d1=Q {[%clk 0:00:33.2]} 47.
Re3 {[%clk 0:01:23.1]} 47... Rg4+ {[%clk 0:00:31.5]} 48. Rg3 {[%clk 0:01:21.9]}
48... Rxg3+ {[%clk 0:00:32]} 0-1

[Event "Late-Titled-Tuesday-Blitz-April-02-2024"]
[Site "Chess.com"]
[Date "2024.04.02"]
[Round "3"]
[White "Mikhal867"]
[Black "stollenmonster"]
[Result "0-1"]
[WhiteElo "2524"]
[BlackElo "2854"]
[TimeControl "180+1"]
[EndTime "14:26:20 PDT"]
[Termination "stollenmonster won on time"]

1. c4 {[%clk 0:02:54.6]} 1... Nf6 {[%clk 0:02:59.7]} 2. Nc3 {[%clk 0:02:53.7]}
2... e6 {[%clk 0:03:00.2]} 3. e4 {[%clk 0:02:53.1]} 3... d5 {[%clk 0:02:58.5]}
4. e5 {[%clk 0:02:53.2]} 4... d4 {[%clk 0:02:58.1]} 5. exf6 {[%clk 0:02:52.1]}
5... dxc3 {[%clk 0:02:58.7]} 6. bxc3 {[%clk 0:02:51]} 6... Qxf6 {[%clk
0:02:58.3]} 7. d4 {[%clk 0:02:50.9]} 7... Qd8 {[%clk 0:02:56]} 8. Nf3 {[%clk
0:02:45.1]} 8... c5 {[%clk 0:02:56.5]} 9. Bd3 {[%clk 0:02:44.2]} 9... Be7 {[%clk
0:02:52.9]} 10. O-O {[%clk 0:02:41.9]} 10... Nc6 {[%clk 0:02:53.3]} 11. Bc2
{[%clk 0:02:23.8]} 11... cxd4 {[%clk 0:02:47.2]} 12. cxd4 {[%clk 0:02:23.6]}
12... Bf6 {[%clk 0:02:46.8]} 13. Bb2 {[%clk 0:02:18.4]} 13... O-O {[%clk
0:02:44]} 14. Re1 {[%clk 0:02:17.5]} 14... b6 {[%clk 0:02:40.6]} 15. Rb1 {[%clk
0:01:44]} 15... Ba6 {[%clk 0:02:26.4]} 16. Be4 {[%clk 0:01:32]} 16... Rc8 {[%clk
0:02:22.5]} 17. Ba3 {[%clk 0:01:31.2]} 17... Re8 {[%clk 0:02:18.5]} 18. Bxc6
{[%clk 0:01:12.8]} 18... Rxc6 {[%clk 0:02:16.6]} 19. Qa4 {[%clk 0:01:12.9]}
19... Qc8 {[%clk 0:02:14.2]} 20. c5 {[%clk 0:00:58.4]} 20... Bd3 {[%clk
0:02:12.3]} 21. Rbd1 {[%clk 0:00:53.7]} 21... b5 {[%clk 0:01:55]} 22. Qb4 {[%clk
0:00:46.3]} 22... Bc4 {[%clk 0:01:53.1]} 23. Ne5 {[%clk 0:00:37.7]} 23... Bxe5
{[%clk 0:01:40.4]} 24. dxe5 {[%clk 0:00:37.5]} 24... a5 {[%clk 0:01:28.7]} 25.
Qxa5 {[%clk 0:00:33.2]} 25... Ra6 {[%clk 0:01:29.2]} 26. Qc3 {[%clk 0:00:33.4]}
26... Qa8 {[%clk 0:01:27.7]} 27. Bb4 {[%clk 0:00:23.7]} 27... Rxa2 {[%clk
0:01:26.4]} 28. Ra1 {[%clk 0:00:19.2]} 28... Bd5 {[%clk 0:01:26.1]} 29. Rxa2
{[%clk 0:00:17.6]} 29... Qxa2 {[%clk 0:01:27]} 30. Qd2 {[%clk 0:00:16.5]} 30...
Qb3 {[%clk 0:01:23.5]} 31. Qc3 {[%clk 0:00:15.7]} 31... Qa2 {[%clk 0:01:21.7]}
32. Ra1 {[%clk 0:00:15.3]} 32... Qe2 {[%clk 0:01:20.8]} 33. Qe1 {[%clk
0:00:12.5]} 33... Qg4 {[%clk 0:01:18.3]} 0-1

[Event "Late-Titled-Tuesday-Blitz-April-02-2024"]
[Site "Chess.com"]
[Date "2024.04.02"]
[Round "3"]
[White "GMBenjaminBok"]
[Black "FredddieCroderg"]
[Result "1-0"]
[WhiteElo "3009"]
[BlackElo "2399"]
[TimeControl "180+1"]
[EndTime "14:26:20 PDT"]
[Termination "GMBenjaminBok won by resignation"]

1. d4 {[%clk 0:03:00.9]} 1... d5 {[%clk 0:02:56.7]} 2. c4 {[%clk 0:03:01.1]}
2... e6 {[%clk 0:02:56.9]} 3. Nc3 {[%clk 0:03:00.9]} 3... Nf6 {[%clk 0:02:56.7]}
4. cxd5 {[%clk 0:03:01.2]} 4... exd5 {[%clk 0:02:56.3]} 5. Bg5 {[%clk
0:03:01.2]} 5... Be7 {[%clk 0:02:56.5]} 6. e3 {[%clk 0:03:01.5]} 6... O-O {[%clk
0:02:56.3]} 7. Bd3 {[%clk 0:03:01.9]} 7... Re8 {[%clk 0:02:55.4]} 8. Nf3 {[%clk
0:02:55.9]} 8... c6 {[%clk 0:02:49]} 9. Qc2 {[%clk 0:02:39]} 9... Nbd7 {[%clk
0:02:47.6]} 10. h3 {[%clk 0:02:32.7]} 10... Nf8 {[%clk 0:02:46.6]} 11. O-O
{[%clk 0:02:19.6]} 11... g6 {[%clk 0:02:45.1]} 12. Ne5 {[%clk 0:02:18.5]} 12...
Ne6 {[%clk 0:02:44.2]} 13. f4 {[%clk 0:02:18.5]} 13... Nd7 {[%clk 0:02:32.8]}
14. Bh6 {[%clk 0:01:40.6]} 14... Bf8 {[%clk 0:02:22.4]} 15. Bxf8 {[%clk
0:01:39.2]} 15... Rxf8 {[%clk 0:02:21.4]} 16. Rae1 {[%clk 0:01:36.5]} 16... f6
{[%clk 0:02:02.6]} 17. Nxd7 {[%clk 0:01:30.5]} 17... Qxd7 {[%clk 0:01:55.7]} 18.
f5 {[%clk 0:01:30.1]} 18... gxf5 {[%clk 0:01:45.1]} 19. Rxf5 {[%clk 0:01:14.5]}
19... Qg7 {[%clk 0:01:38.9]} 20. Rh5 {[%clk 0:01:10]} 20... Ng5 {[%clk
0:01:34.6]} 21. Kh1 {[%clk 0:01:06.9]} 21... f5 {[%clk 0:01:24.5]} 22. Rf1
{[%clk 0:01:03.1]} 22... Qg6 {[%clk 0:01:03.3]} 23. Rh4 {[%clk 0:00:57.4]} 23...
Be6 {[%clk 0:00:49.4]} 24. Rhf4 {[%clk 0:00:45.6]} 24... Ne4 {[%clk 0:00:47.9]}
25. Bxe4 {[%clk 0:00:46]} 25... fxe4 {[%clk 0:00:46.5]} 26. Ne2 {[%clk
0:00:37.9]} 26... Kh8 {[%clk 0:00:26.3]} 27. Rxf8+ {[%clk 0:00:37.1]} 1-0

[Event "Late-Titled-Tuesday-Blitz-April-02-2024"]
[Site "Chess.com"]
[Date "2024.04.02"]
[Round "3"]
[White "Navyblue1"]
[Black "andrzej"]
[Result "0-1"]
[WhiteElo "2263"]
[BlackElo "2492"]
[TimeControl "180+1"]
[EndTime "14:26:20 PDT"]
[Termination "andrzej won by resignation"]

1. d4 {[%clk 0:02:54]} 1... Nf6 {[%clk 0:02:58.7]} 2. c4 {[%clk 0:02:54.9]} 2...
e6 {[%clk 0:02:59.1]} 3. Nf3 {[%clk 0:02:38.9]} 3... d5 {[%clk 0:02:59]} 4. Nc3
{[%clk 0:02:13.1]} 4... Bb4 {[%clk 0:02:58.6]} 5. Qa4+ {[%clk 0:01:54.5]} 5...
Nc6 {[%clk 0:02:57.9]} 6. Bd2 {[%clk 0:01:53.2]} 6... O-O {[%clk 0:02:54.5]} 7.
e3 {[%clk 0:01:53.6]} 7... Re8 {[%clk 0:02:52.9]} 8. Be2 {[%clk 0:01:50.6]} 8...
Bf8 {[%clk 0:02:37.3]} 9. O-O {[%clk 0:01:47.4]} 9... Bd7 {[%clk 0:02:23.9]} 10.
Qc2 {[%clk 0:01:45.4]} 10... a5 {[%clk 0:02:12.9]} 11. a3 {[%clk 0:01:37.8]}
11... a4 {[%clk 0:02:11.5]} 12. e4 {[%clk 0:01:26.4]} 12... dxc4 {[%clk
0:01:51.9]} 13. Bxc4 {[%clk 0:01:15.1]} 13... Na5 {[%clk 0:01:50.8]} 14. Ba2
{[%clk 0:00:56.4]} 14... Bc6 {[%clk 0:01:49.3]} 15. Rfe1 {[%clk 0:00:53.4]}
15... b6 {[%clk 0:01:34.1]} 16. Rad1 {[%clk 0:00:47.9]} 16... Bb7 {[%clk
0:01:28.3]} 17. h3 {[%clk 0:00:48.1]} 17... Nb3 {[%clk 0:01:12.9]} 18. Bxb3
{[%clk 0:00:36.5]} 18... axb3 {[%clk 0:01:13.8]} 19. Qxb3 {[%clk 0:00:36.4]}
19... h6 {[%clk 0:00:58.2]} 20. Be3 {[%clk 0:00:34.2]} 20... Nxe4 {[%clk
0:00:56.4]} 21. Nxe4 {[%clk 0:00:25.4]} 21... Bxe4 {[%clk 0:00:57.3]} 22. Ne5
{[%clk 0:00:23]} 22... Bd5 {[%clk 0:00:55.8]} 23. Qc3 {[%clk 0:00:21.6]} 23...
Qf6 {[%clk 0:00:52]} 24. Nc6 {[%clk 0:00:16.8]} 24... Qg6 {[%clk 0:00:50.9]} 25.
g3 {[%clk 0:00:15.8]} 25... Qe4 {[%clk 0:00:49.6]} 0-1

[Event "Late-Titled-Tuesday-Blitz-April-02-2024"]
[Site "Chess.com"]
[Date "2024.04.02"]
[Round "3"]
[White "1g60-1"]
[Black "ahkashefi2800"]
[Result "0-1"]
[WhiteElo "2402"]
[BlackElo "2598"]
[TimeControl "180+1"]
[EndTime "14:26:27 PDT"]
[Termination "ahkashefi2800 won by resignation"]

1. e4 {[%clk 0:03:00.9]} 1... c5 {[%clk 0:02:59.2]} 2. Nf3 {[%clk 0:03:01.2]}
2... d6 {[%clk 0:02:56.5]} 3. d4 {[%clk 0:03:01.2]} 3... cxd4 {[%clk 0:02:56.7]}
4. Nxd4 {[%clk 0:03:02.1]} 4... Nf6 {[%clk 0:02:57]} 5. Nc3 {[%clk 0:03:02.6]}
5... g6 {[%clk 0:02:50.6]} 6. Be3 {[%clk 0:03:02.4]} 6... Bg7 {[%clk 0:02:49.8]}
7. f3 {[%clk 0:03:02.8]} 7... O-O {[%clk 0:02:49.1]} 8. Qd2 {[%clk 0:03:03.4]}
8... Nc6 {[%clk 0:02:46.4]} 9. Bc4 {[%clk 0:03:03.6]} 9... Nxd4 {[%clk
0:02:42.9]} 10. Bxd4 {[%clk 0:03:04.5]} 10... Be6 {[%clk 0:02:41.7]} 11. Bxe6
{[%clk 0:03:00]} 11... fxe6 {[%clk 0:02:42.6]} 12. O-O-O {[%clk 0:03:00.1]}
12... Qa5 {[%clk 0:02:38.1]} 13. Kb1 {[%clk 0:02:56]} 13... Rac8 {[%clk
0:02:30.2]} 14. Nd5 {[%clk 0:02:22.8]} 14... Qxd2 {[%clk 0:02:19.6]} 15. Nxf6+
{[%clk 0:02:22.9]} 15... Bxf6 {[%clk 0:02:16.1]} 16. Rxd2 {[%clk 0:02:23.1]}
16... Bxd4 {[%clk 0:02:13.8]} 17. Rxd4 {[%clk 0:02:22.9]} 17... e5 {[%clk
0:02:14.7]} 18. Rd3 {[%clk 0:02:16.9]} 18... Kf7 {[%clk 0:02:13.9]} 19. Rb3
{[%clk 0:02:05.1]} 19... Rc7 {[%clk 0:02:12]} 20. Rd1 {[%clk 0:02:04.5]} 20...
Ke6 {[%clk 0:02:11]} 21. Rd5 {[%clk 0:02:00.2]} 21... g5 {[%clk 0:02:10.3]} 22.
a4 {[%clk 0:01:57.4]} 22... h5 {[%clk 0:02:09.4]} 23. Rdb5 {[%clk 0:01:50.8]}
23... b6 {[%clk 0:02:03]} 24. a5 {[%clk 0:01:49.5]} 24... bxa5 {[%clk 0:02:03]}
25. Rxa5 {[%clk 0:01:50]} 25... Rfc8 {[%clk 0:02:03.2]} 26. c3 {[%clk
0:01:46.1]} 26... g4 {[%clk 0:02:02.5]} 27. Rba3 {[%clk 0:01:38.8]} 27... Ra8
{[%clk 0:01:53.1]} 28. b4 {[%clk 0:01:24.4]} 28... gxf3 {[%clk 0:01:50.9]} 29.
gxf3 {[%clk 0:01:25.3]} 29... h4 {[%clk 0:01:43.2]} 30. Kb2 {[%clk 0:01:25]}
30... Kf6 {[%clk 0:01:43.1]} 31. b5 {[%clk 0:01:20.2]} 31... Kg5 {[%clk
0:01:40.9]} 32. b6 {[%clk 0:00:49.9]} 32... Rb7 {[%clk 0:01:40.3]} 33. Rxa7
{[%clk 0:00:49.4]} 33... Rxb6+ {[%clk 0:01:38.9]} 34. Kc2 {[%clk 0:00:48.9]}
34... Rab8 {[%clk 0:01:38.3]} 35. Rxe7 {[%clk 0:00:46]} 35... Rb2+ {[%clk
0:01:23.6]} 36. Kd3 {[%clk 0:00:45.5]} 36... Rxh2 {[%clk 0:01:19.4]} 37. Rf7
{[%clk 0:00:44.5]} 37... h3 {[%clk 0:01:15.7]} 38. Ra6 {[%clk 0:00:28.8]} 38...
Rh1 {[%clk 0:01:12.7]} 39. Rf5+ {[%clk 0:00:19.7]} 39... Kh4 {[%clk 0:01:12.5]}
40. Rxd6 {[%clk 0:00:18]} 40... Rd1+ {[%clk 0:01:11.9]} 0-1

[Event "Late-Titled-Tuesday-Blitz-April-02-2024"]
[Site "Chess.com"]
[Date "2024.04.02"]
[Round "3"]
[White "RodokininEV"]
[Black "Oleksandr_Bortnyk"]
[Result "0-1"]
[WhiteElo "2698"]
[BlackElo "3043"]
[TimeControl "180+1"]
[EndTime "14:26:35 PDT"]
[Termination "Oleksandr_Bortnyk won by resignation"]

1. e4 {[%clk 0:02:55.5]} 1... Nf6 {[%clk 0:02:58.4]} 2. e5 {[%clk 0:02:53.9]}
2... Nd5 {[%clk 0:02:58.5]} 3. d4 {[%clk 0:02:54.1]} 3... d6 {[%clk 0:02:58.8]}
4. c4 {[%clk 0:02:53.4]} 4... Nb6 {[%clk 0:02:58.9]} 5. exd6 {[%clk 0:02:54.3]}
5... exd6 {[%clk 0:02:59.3]} 6. Nc3 {[%clk 0:02:52.5]} 6... Be7 {[%clk
0:02:59.7]} 7. Nf3 {[%clk 0:02:52.4]} 7... O-O {[%clk 0:03:00]} 8. Be2 {[%clk
0:02:52.8]} 8... Bg4 {[%clk 0:02:59.9]} 9. b3 {[%clk 0:02:52.2]} 9... Nc6 {[%clk
0:03:00.1]} 10. O-O {[%clk 0:02:35.7]} 10... Bf6 {[%clk 0:03:00]} 11. Be3 {[%clk
0:02:35.4]} 11... Re8 {[%clk 0:03:00.5]} 12. Rc1 {[%clk 0:02:34.1]} 12... h6
{[%clk 0:02:59.5]} 13. Qd2 {[%clk 0:02:33]} 13... d5 {[%clk 0:02:59.4]} 14. c5
{[%clk 0:02:29.9]} 14... Nc8 {[%clk 0:02:59.7]} 15. b4 {[%clk 0:02:30.3]} 15...
a6 {[%clk 0:02:50.8]} 16. a4 {[%clk 0:02:29.4]} 16... Nxb4 {[%clk 0:02:49]} 17.
Rb1 {[%clk 0:02:28.8]} 17... a5 {[%clk 0:02:49.5]} 18. Rfc1 {[%clk 0:02:01]}
18... Na7 {[%clk 0:02:40]} 19. Nb5 {[%clk 0:01:47]} 19... Nac6 {[%clk
0:02:37.2]} 20. h3 {[%clk 0:01:42.5]} 20... Bf5 {[%clk 0:02:35.7]} 21. Rb2
{[%clk 0:01:38.2]} 21... Re7 {[%clk 0:02:31.4]} 22. Bf1 {[%clk 0:01:25.3]} 22...
Be4 {[%clk 0:02:28.5]} 23. Be2 {[%clk 0:01:15.6]} 23... Qd7 {[%clk 0:02:23.6]}
24. Nc3 {[%clk 0:01:06.7]} 24... Bf5 {[%clk 0:02:19.7]} 25. Bb5 {[%clk
0:00:47.5]} 25... Rae8 {[%clk 0:02:19.1]} 26. Rd1 {[%clk 0:00:39.6]} 26... Bxh3
{[%clk 0:01:57.9]} 27. gxh3 {[%clk 0:00:31.8]} 27... Qxh3 {[%clk 0:01:58.8]} 28.
Nh2 {[%clk 0:00:31.4]} 28... Rxe3 {[%clk 0:01:55.5]} 29. fxe3 {[%clk 0:00:29]}
29... Rxe3 {[%clk 0:01:56.4]} 30. Bxc6 {[%clk 0:00:23.3]} 30... bxc6 {[%clk
0:01:31.2]} 31. Nb1 {[%clk 0:00:12.4]} 31... Rd3 {[%clk 0:01:24.3]} 32. Qe2
{[%clk 0:00:06.4]} 32... Bxd4+ {[%clk 0:01:23.4]} 33. Kh1 {[%clk 0:00:06.2]}
33... Rxd1+ {[%clk 0:01:23.2]} 34. Qxd1 {[%clk 0:00:07.1]} 34... Bxb2 {[%clk
0:01:23.6]} 35. Nd2 {[%clk 0:00:06.8]} 35... Nd3 {[%clk 0:01:13.6]} 36. Qe2
{[%clk 0:00:04.8]} 36... Bd4 {[%clk 0:01:09.8]} 37. Nf3 {[%clk 0:00:03.4]} 37...
Nf2+ {[%clk 0:01:04.1]} 0-1

[Event "Late-Titled-Tuesday-Blitz-April-02-2024"]
[Site "Chess.com"]
[Date "2024.04.02"]
[Round "3"]
[White "Slovineanu"]
[Black "Kazan28"]
[Result "0-1"]
[WhiteElo "2463"]
[BlackElo "2655"]
[TimeControl "180+1"]
[EndTime "14:26:36 PDT"]
[Termination "Kazan28 won by resignation"]

1. d4 {[%clk 0:02:59.8]} 1... d6 {[%clk 0:02:58.9]} 2. e4 {[%clk 0:02:58.4]}
2... Nf6 {[%clk 0:02:59.8]} 3. Nc3 {[%clk 0:02:58.5]} 3... e5 {[%clk 0:03:00.3]}
4. Nf3 {[%clk 0:02:58.4]} 4... Nbd7 {[%clk 0:03:00.2]} 5. Bc4 {[%clk 0:02:58.5]}
5... Be7 {[%clk 0:03:00.6]} 6. O-O {[%clk 0:02:58]} 6... O-O {[%clk 0:03:01.2]}
7. h3 {[%clk 0:02:58.4]} 7... b6 {[%clk 0:02:59.8]} 8. Re1 {[%clk 0:02:53.7]}
8... Bb7 {[%clk 0:02:59.1]} 9. a4 {[%clk 0:02:53.5]} 9... a6 {[%clk 0:02:58.4]}
10. d5 {[%clk 0:02:49.7]} 10... a5 {[%clk 0:02:46.8]} 11. Bb5 {[%clk 0:02:43.3]}
11... Nc5 {[%clk 0:02:45.1]} 12. Bg5 {[%clk 0:02:33.3]} 12... Nh5 {[%clk
0:02:36.4]} 13. Be3 {[%clk 0:02:30.4]} 13... g6 {[%clk 0:02:30.3]} 14. Bf1
{[%clk 0:02:14]} 14... Bc8 {[%clk 0:02:20.1]} 15. Nd2 {[%clk 0:02:09.1]} 15...
Bg5 {[%clk 0:02:17.4]} 16. Nc4 {[%clk 0:02:05.5]} 16... Bxe3 {[%clk 0:02:14.3]}
17. Nxe3 {[%clk 0:02:05.4]} 17... Nf4 {[%clk 0:02:14.4]} 18. Kh2 {[%clk
0:01:59.4]} 18... Bd7 {[%clk 0:01:58.6]} 19. g3 {[%clk 0:01:57.9]} 19... Nh5
{[%clk 0:01:58.9]} 20. Bg2 {[%clk 0:01:54.5]} 20... Ng7 {[%clk 0:01:56.6]} 21.
b3 {[%clk 0:01:42.5]} 21... f5 {[%clk 0:01:56.4]} 22. exf5 {[%clk 0:01:35.5]}
22... gxf5 {[%clk 0:01:55.3]} 23. Nc4 {[%clk 0:01:28.7]} 23... Qf6 {[%clk
0:01:48.2]} 24. Ne2 {[%clk 0:01:19.5]} 24... f4 {[%clk 0:01:44.1]} 25. gxf4
{[%clk 0:00:58.5]} 25... exf4 {[%clk 0:01:45]} 26. Ng1 {[%clk 0:00:49.6]} 26...
Rae8 {[%clk 0:01:19]} 27. Nf3 {[%clk 0:00:47.2]} 27... Ne4 {[%clk 0:01:19.1]}
28. Rf1 {[%clk 0:00:31.8]} 28... Kh8 {[%clk 0:01:14.6]} 29. Qd4 {[%clk
0:00:30.9]} 29... Qh6 {[%clk 0:01:05.4]} 30. Rae1 {[%clk 0:00:27.1]} 30... Nf6
{[%clk 0:00:56.7]} 31. Rxe8 {[%clk 0:00:25.4]} 31... Rxe8 {[%clk 0:00:56.8]} 32.
Re1 {[%clk 0:00:22]} 32... Rg8 {[%clk 0:00:52.5]} 33. Re7 {[%clk 0:00:18.1]}
33... Nf5 {[%clk 0:00:52.1]} 34. Qc3 {[%clk 0:00:13.3]} 34... Nxe7 {[%clk
0:00:51.8]} 0-1